{"text_format":"1","workbook":"xlsx","n_sheets":1,"sheets":["НОВЫЙ МОНИТОРИНГ Доп Май 2018"],"not_rendered":{"charts":0,"images":0,"macros":1,"external_links":0,"defined_names":11,"comments":1,"pivot_tables":0},"unopened":[],"bounds":{"document_bytes":16777216,"sheet_cells":100000,"rows_first":2000,"rows_last":500,"rows_between":2000,"halvings":0,"cell_chars":16384,"cell_head_chars":4096},"cells_cut":0,"cells_raw":0,"read":"whole","date_system":"1900"}

{"sheet":"НОВЫЙ МОНИТОРИНГ Доп Май 2018","index":0,"n_rows":107,"n_cols":57,"rows_kept":107,"cut":false,"hidden":false,"merged":[]}
["Уровень 1","Уровень 2","Дата","2018-05-11",null,"2018-05-14",null,"2018-05-14",null,"2018-05-14",null,"2018-05-14",null,"2018-05-15",null,"2018-05-15",null,"2018-05-16",null,"2018-05-16",null,"2018-05-16",null,"2018-05-17",null,"2018-05-17",null,"2018-05-18",null,"2018-05-18",null,"2018-05-21",null,"2018-05-21",null,"2018-05-22",null,"2018-05-22",null,"2018-05-22",null,"2018-05-22",null,"2018-05-22",null,"2018-05-22",null,"2018-05-22",null,"2018-05-22",null,"2018-05-22",null,"2018-05-22",null,"2018-05-22"]
[null,null,null,"Западный",null,"Карасунский",null,"Западный",null,"Карасунский",null,"Прикубанский",null,"Центральный",null,"Западный",null,"Карасунский",null,"Центральный",null,"Карасунский",null,"Карасунский",null,"Карасунский",null,"Карасунский",null,"Прикубанский",null,"Центральный",null,"Прикубанский",null,"Карасунский",null,"Западный",null,"Центральный",null,"Центральный",null,"Карасунский",null,"Прикубанский",null,"Прикубанский",null,"Центральный",null,"Западный",null,"Центральный",null,"Западный"]
["Наименование раздела в меню сайта","Наименование подраздела","Критерий","МБОУ ДО ДЮЦ",null,"МАУ ДО МЭЦ",null,"МБОУ ДО ЦРТДЮ",null,"МБОУ ДО ДДТ \"Созвездие\"",null,"МБОУ ДО ЦДТ \"Прикубанский\"",null,"МБОУ ДО ЦТ \"Содружество\"",null,"МБОУ ДО ДШИ \"Юбилейная\"",null,"МБОУ ДО ДШИ \"Родник\"",null,"МБОУ ДО ЦТР \"Центральный\"",null,"МБОУ ДО ДШИ \"Овация\"",null,"МБОУ ДО ЦДТТ \"Юный техник\"",null,"МБОУ ДО ДЦ \"Автогородок\"",null,"МБОУ ДО ДМЦ",null,"МБОУ ДО ЦДТТ \"Парус\"",null,"МУ ДО \"Малая академия\"",null,"МБОУ ДО ЦДЮТ",null,"МАОУ ЦО ДО \"Перспектива\"",null,"МБОУ ДО ГДЮСШ",null,"МБОУ ДО ДЮСШ № 7",null,"МБОУ ДО СДЮСШ  № 1",null,"МБОУ ДО СШ № 1",null,"МАОУ ДО СШ № 6 ",null,"МБОУ ДО СШ № 8",null,"МБОУ ДО ДЮСШ № 2",null,"МБОУ ДО СШ № 4",null,"МБОУ ДО СШ № 3",null,"МБОУ ДО СШ \"Юбилейная\""]
["Сведения об образовательной организации","Основные сведения","Полное наименование образовательной организации",2," ",2,null,2," ",2," ",2," ",2," ",2," ",2," ",2,null,2,null,2,null,2," ",2,null,1,"Разместите полное наименование согласно п. 3 Устава",2,null,2," ",2," ",2," ",2," ",2," ",2,"отформатируйте таблицу",2," ",2,"  ",2," ",2,"  ",2,"  ",2]
["Сведения об образовательной организации","Основные сведения","Краткое наименование образовательной организации",2,"   ",2,null,2," ",2," ",2," ",2," ",2," ",2," ",2,null,2,null,2,null,2," ",2,null,2," ",2,null,2," ",2," ",2," ",2," ",2," ",2," ",2," ",2," ",2," ",2,"  ",2,"  ",2]
["Сведения об образовательной организации","Основные сведения","Дата создания образовательной организации",2,"  ",2,null,2," ",2," ",2," ",2," ",2," ",2," ",2,null,2,null,2,null,2," ",2,null,2," ",2,null,2," ",2," ",2," ",2," ",2," ",2," ",2," ",2,"  ",2," ",2,"  ",2,"  ",2]
["Сведения об образовательной организации","Основные сведения","Учредитель (наименование, место нахождения, график работы, телефон, сайт, адрес электронной почты)",2,"  ",2,null,1,"Откорректировать телефоны сотрудников ДО",1,"Откорректировать телефоны сотрудников ДО",2," ",1,"Дополнить информацией о телефонах специалистов департамента образования",2," ",2," ",2,null,2,null,2,null,2," ",1,null,1,"Дополнить информацией о телефонах специалистов департамента образования и отдела образования округа",2,"Откоректируйте фомилии специалистов",2," ",2," ",2," ",2," ",2," ",2,"Оставьте только номера телефонов. Фамилии могут меняться.",2,"оставьте только номера специалистов",2,"Оставьте только телефоны специалистов. Фамилии могут меняться.",2," ",2,"   ",2,"Уберите фамилии специалистов. Оставьте только номера телефонов",2]
["Сведения об образовательной организации","Основные сведения","Адрес образовательной организации и её филиалов (при наличии)",2," ",2,null,2," ",2," ",2," ",2," ",2," ",2," ",2,null,2,null,2,null,2," ",2,null,2," ",2,null,2," ",2," ",2," ",2," ",2," ",2," ",2,"  ",2,"  ",2," ",2,"  ",2,"  ",2]
["Сведения об образовательной организации","Основные сведения","Режим, график работы",2," ",2," ",2," ",2," ",2," ",1,"Нет графика работы ",2," ",2," ",2,null,2,null,2,null,2," ",1,null,1,"Разместите более полную информацию",1,"Разместите более полную информацию",1,"Разместите более полную информацию",2," ",2," ",2," ",2," ",2," ",2," ",2,"  ",1,"Разместите более подробную и точную информацию",2,"  ",2,"  ",2]
["Сведения об образовательной организации","Основные сведения","Телефон, факс",2," ",2,null,2," ",2," ",2," ",2," ",2," ",2," ",2,null,2,null,2,null,2," ",2,null,2," ",2," ",2," ",2," ",2," ",2," ",2," ",2," ",2,"  ",2,"  ",2," ",2,"  ",2,"  ",2]
["Сведения об образовательной организации","Основные сведения","E-mail",2," ",2,null,2," ",2," ",2," ",2," ",2," ",1,"Ошибка в адресе электронной почты",2,null,2,null,2,null,2," ",2,null,2," ",2," ",2," ",2," ",2,"  ",2,"  ",2," ",2," ",2,"  ",2,"  ",2," ",2,"  ",2,"  ",2]
["Сведения об образовательной организации","Основные сведения","Схема проезда",2," ",2,null,2," ",2," ",2," ",2," ",2," ",2," ",2,null,2,null,2,null,2," ",2,null,2," ",2," ",2," ",2," ",2," ",2," ",2," ",2," ",2,"  ",2,"  ",2," ",2,"  ",2,"  ",2]
["Сведения об образовательной организации","Структура и органы управления общеобразовательной организации","Наименования органов управления",2," ",2,null,2," ",2," ",2," ",0,"См. п 51 Устава",2," ",2," ",2," ",2,null,2,null,2," ",1,"Отредактируйте текст. Управление осуществляется колегиальными органами управления, а не положениями",2," ",2," ",0,"См. п.51 Устава",2," ",2," ",2," ",2," ",2," ",2,"  ",2," ",2," ",2,"  ",2,"  ",2]
["Сведения об образовательной организации","Структура и органы управления общеобразовательной организации","Положения  об органах управления с приложением копий указанных положений (при их наличии)",2," ",2,null,1,"Положение об общем собрании трудового коллектива заменить на Положения об общем сотрании работников",1,"в Положении о профсоюзе откорректировать название организации",2," ",0,"Нет информации",2," ",2," ",2," ",2,null,1,null,2," ",2," ",2," ",0,"Критерий не оформлен.Часть положений размещены в другом подразделе, части нет.",0,"Нет информации",2," ",2," ",2," ",2," ",2," ",2,"   ",2," ",1,"Замените положение на Об общем собрании работникоа",2,"  ",2,"  ",2]
["Сведения об образовательной организации","Структура и органы управления общеобразовательной организации","Наименования структурных подразделений (филиалы и др.)",2," ",2,null,2," ",2," ",2," ",2," ",2," ",2," ",2," ",2,null,2,null,2," ",2," ",2," ",2," ",2," ",2," ",2," ",2," ",2," ",2," ",2,"  ",2,"  ",2," ",2,"  ",0,"нет информации",2]
["Сведения об образовательной организации","Структура и органы управления общеобразовательной организации","ФИО и должности руководителей структурных подразделений",2," ",2,null,2," ",2," ",2," ",2," ",2," ",2," ",2," ",2,null,2,null,2," ",2," ",2," ",2," ",2," ",2," ",2," ",2," ",2," ",2," ",2,"  ",2,"  ",2," ",2,"  ",2,"  ",2]
["Сведения об образовательной организации","Структура и органы управления общеобразовательной организации","Места нахождения структурных подразделений",2," ",2,null,2," ",2,"  ",2," ",2,"  ",2," ",2," ",2," ",2,null,2,null,2," ",2," ",2," ",2," ",2," ",2," ",2," ",2," ",2," ",2," ",2,"   ",2,"  ",2," ",2,"  ",2,"  ",2]
["Сведения об образовательной организации","Структура и органы управления общеобразовательной организации","Адреса официальных сайтов в сети «Интернет» и электронной почты структурных подразделений (при наличии)",2," ",2,null,2," ",2," ",2," ",2," ",2," ",2," ",2," ",2," ",2,null,2," ",2," ",2," ",2," ",2," ",2," ",2," ",2," ",2," ",2," ",2,"   ",2,"  ",2," ",2,"  ",2,"  ",2]
["Сведения об образовательной организации","Структура и органы управления общеобразовательной организации","Сведения о наличии положений о структурных подразделениях, с приложением копий указанных положений (при их наличии)",2," ",2,null,2," ",2," ",2," ",1,"Нет реквизитов утверждения положений",2," ",2," ",2," ",2," ",2,null,2," ",2," ",2," ",2," ",2," ",2," ",2," ",2," ",2," ",2," ",2,"  ",2,"  ",2," ",2,"  ",2,"  ",2]
["Сведения об образовательной организации","Документы","Копия Устава, изменения и дополнения к Уставу",2," ",2,null,2," ",2," ",2," ",2," ",2," ",2," ",2," ",2," ",2,null,2," ",2," ",2," ",2," ",2," ",2," ",2," ",2," ",2," ",2," ",2,"   ",2,"  ",2," ",2,"  ",2,"  ",2]
["Сведения об образовательной организации","Документы","Копия лицензии на осуществление образовательной деятельности (с приложениями)",2," ",2,null,2," ",2," ",2," ",1,"Выход через меню отсутствует. Информацию можно обнаружить только через карту сайта",2," ",2," ",2," ",2," ",2,null,2," ",1,"Нет приложения к лицензии",2," ",2," ",2," ",2," ",2," ",2," ",2," ",2," ",2,"   ",2,"   ",2," ",2,"  ",2,"  ",2]
["Сведения об образовательной организации","Документы","Копия плана финансово-хозяйственной деятельности образовательной организации, утвержденного в установленном законодательством РФ порядке, или бюджетные сметы образовательной организации",2," ",2,null,2," ",2," ",2," ",0,"Выход через меню отсутствует. Информацию можно обнаружить только через карту сайта. План за 2016 год",0,"на 2017 ",2," ",2," ",2," ",0,null,2," ",2," ",1,"Размещен в другом подразделе",2," ",0,"на 2017 год",0,"на 2017 год",2," ",2," ",2," ",2," ",2,"  ",0,"прошлый год",0,"На 2017 год",2,"  ",2,"  ",2]
["Сведения об образовательной организации","Документы. Локальные нормативные акты","Регламентирующие правила  приема обучающихся",2," ",2,null,2," ",2," ",2," ",1,"Не все ссылки открываются",2," ",2," ",2," ",2," ",2,null,2," ",2," ",2," ",2," ",2," ",2," ",2," ",2," ",2," ",1," ",2," ",2,"  ",2," ",2,"  ",2,"  ",2]
["Сведения об образовательной организации","Документы. Локальные нормативные акты","Режим занятий обучающихся",2," ",2,null,2," ",2,null,2," ",2," ",2," ",2," ",2," ",2," ",2,null,2," ",2," ",2," ",2," ",0,"Нет информации",1,"Нет реквизитов утверждения",2," ",2," ",2," ",1," ",2," ",2,"  ",2," ",2,"  ",2,"  ",2]
["Сведения об образовательной организации","Документы. Локальные нормативные акты","Формы, периодичность и порядок текущего контроля успеваемости и промежуточной аттестации обучающихся",2," ",2,null,2," ",2," ",2," ",2," ",2," ",2," ",2," ",2," ",2,null,2," ",2," ",2," ",1,"Ссылка на устав и упоминание других документов",1,"Размещен не локальный акт, а обычный текст ",2," ",2," ",2," ",2," ",1," ",2,"   ",2,"  ",2," ",2,"  ",2,"  ",2]
["Сведения об образовательной организации","Документы. Локальные нормативные акты","Порядок и основания перевода, отчисления и восстановления обучающихся",2," ",2,null,0,"нет информации",2," ",2," ",1,"Нет реквизитов утверждения положения",0,"Нет информации",2," ",2," ",2," ",2,null,2,null,2," ",2," ",1,"Ссылка Правила внутреннего распорядка обучающихся",0,"Нет информации",2," ",2," ",2," ",2," ",1," ",2,"  ",2,"  ",2," ",2,"  ",2,"  ",2]
["Сведения об образовательной организации","Документы. Локальные нормативные акты","Порядок оформления возникновения, приостановления и прекращения отношений между образовательной организацией и обучающимися и (или) родителями (законными представителями) несовершеннолетних обучающихся",2," ",2,null,2," ",2," ",2," ",0,"Критерий не оформлен. Информации нет",2," ",2," ",2," ",2," ",2,null,2," ",2," ",1,"Размещены документы имеющие очень косьвенное отношение к данному критерию",1,"Ссылка на устав и Правила внутреннего распорядка обучающихся",0,"Нет информации",0,"Страница не найдена",2," ",2,"  ",2," ",2," ",2," ",2,"  ",2," ",2,"  ",2,"  ",2]
["Сведения об образовательной организации","Документы. Локальные нормативные акты","Правила внутреннего распорядка обучающихся",2," ",2,null,1,"Размещены правила поведения",2," ",2," ",0,"Ссылка не открывается",2," ",2," ",2," ",2," ",2,null,2," ",2," ",2," ",2," ",0,"Нет информации",2," ",2," ",2," ",2," ",2," ",2,"  ",2,"  ",2," ",2,"  ",2,"  ",2]
["Сведения об образовательной организации","Документы. Локальные нормативные акты","Правила внутреннего трудового распорядка",2," ",2," ",2," ",1,"п. 53 Устава. К исключительной компетенции общего собрания работников бюджетного  учреждения относятся:\nутверждение Правил внутреннего трудового распорядка бюджетного  учреждения;",1,"п. 68 Устава. К компетенции общего собрания работников Автономного  учреждения относятся:\nутверждение Правил внутреннего трудового распорядка Автономного  учреждения;\n",0,"Размещен приказ на 2016-2017 уч. Год",2," ",2," ",2," ",1,"См. п 46 Устава. \"К исключительной компетенции общего собрания работников Бюд-\nжетного учреждения относятся:\nутверждение Правил внутреннего трудового распорядка Бюджетного\nучреждения;\", а у вас принято решением педсовета",1,"См. п 53 Устава. \"К исключительной компетенции общего собрания работников Бюд-\nжетного учреждения относятся:\nутверждение Правил внутреннего трудового распорядка Бюджетного\nучреждения;\", а у вас утверждено директором. И полномочия общего собрания в Положении и в Уставе не совпадают.",2," ",2," ",1,"Размещен приказ о режиме работы организации",2," ",1,"Не все реквизиты утверждения",1,"См. п 1 Устава. \"К исключительной компетенции общего собрания работников автономного учреждения относятся:\nутверждение Правил внутреннего трудового распорядка автономного\nучреждения;\", а у вас утверждено директором. ",2," ",2," ",1,"ссылка не работает",2," ",2,"  ",2,"  ",1,"п. 53 Устава. К исключительной компетенции общего собрания работников бюджетного  учреждения относятся:\nутверждение Правил внутреннего трудового распорядка бюджетного  учреждения; а у вас только учтено мнение профсоюза",2,"  ",2,"  ",2]
["Сведения об образовательной организации","Документы. Локальные нормативные акты","Коллективный  договор",2," ",2," ",0,"На 2014-2017",2," ",2," ",0,"на  2011- 2014 годы",0,"на 2014-2017",2," ",2," ",2," ",2," ",2," ",2," ",2," ",2," ",2," ",2," ",2," ",2," ",2," ",2," ",0,"до 2017 г.",2,"  ",2," ",2,"  ",2,"  ",2," "]
["Сведения об образовательной организации","Документы. Локальные нормативные акты","Положение о сайте образовательной организации",2,"  ",2,null,1,"Обновить положение о сайте (Приказ департамента образования от 21.03.2018 № 361)",2," ",1,"Обновить положение о сайте (Приказ департамента образования от 21.03.2018 № 361)",1,"Обновить положение о сайте (Приказ департамента образования от 21.03.2018 № 361).\nВ данном подразделе не предусмотрено размещение других документов кроме локальных актов",1,"Обновить положение о сайте (Приказ департамента образования от 21.03.2018 № 361)",2," ",1,"Обновить положение о сайте (Приказ департамента образования от 21.03.2018 № 361). Заменить Приложение к прошлому приказу департамента на свое.",1,"У вас приложение к Положению о сайте размещено департамента образования, а требуется свое.",1,"Обновить положение о сайте (Приказ департамента образования от 21.03.2018 № 361). ",2," ",2," ",1,"Замените Приложение к Положению о сайте",1,"Размещены документы департамента образования, Это не локальные акты",1,"Обновить положение о сайте (Приказ департамента образования от 21.03.2018 № 361)",1,"Обновить положение о сайте (Приказ департамента образования от 21.03.2018 № 361)",2," ",2," ",2," ",2," ",1,"обновите",2,"  ",1,"Обновить положение о сайте (Приказ департамента образования от 21.03.2018 № 361)",2,"  ",2,"  ",2," "]
["Сведения об образовательной организации","Документы. Локальные нормативные акты","Приказы, положения, должностные инструкции",2," ",2,null,2," ",2," ",2," ",2," ",2," ",2," ",2," ",2," ",2," ",2," ",2," ",2," ",2," ",2," ",2," ",2," ",2," ",2," ",2," ",2,"   ",2,"  ",2," ",2,"  ",2,"  ",2," "]
["Сведения об образовательной организации","Документы. Результаты самообследования","Отчёт о результатах самообследования за предшествующий календарный год",2," ",2,null,2," ",0,"Нет информации",2," ",2," ",2," ",2," ",0,"Нет информации",2," ",2," ",2," ",2," ",2," ",2," ",0,"Нет информации",0,"Нет информации",0,"Должен быть отчет за 2017 календарный год",2," ",0,"Должен быть отчет за 2017 календарный год",0,"Должен быть отчет за 2017 календарный год",0,"Должен быть отчет за 2017 календарный год",2,"   ",2," ",0,"Должен быть отчет за 2017 календарный год",2,"  ",2," "]
["Сведения об образовательной организации","Документы. Результаты самообследования","Наличие доп. показателей самообследования за предшествующий календарный год, необходимых для проведения НОКО",2," ",2,null,2," ",2," ",1,"Указать год доп. Самообследования",2," ",2," ",2," ",2," ",2," ",2," ",2," ",0,"Страница не найдена",0,"Нет информации",0,"Нет информации",0,"Нет информации",1,"Размещен \"странный\" документ, поверх документа ДО нанесена информация за организацию",0,"  ",2," ",2," ",2," ",0,"нет информации",2,"нет реквизитов. не указан год",2," ",1,"без реквизитов",2,"  ",2," "]
["Сведения об образовательной организации","Документы. Результаты самообследования","Публичный доклад за предшествующий календарный год",2," ",2,null,0,"Нет информации",0,"Нет информации",2," ",0,"Нет информации",1,"Ссылка не открывается",1,"Нет критерия.\nИнформация расположена в   подразделе \"Программа развития\"",0,"Нет информации",0,"Нет информации",0,"Нет информации",2," ",0,"Страница не найдена",0,"Нет информации",0,"Нет информации",0,"Нет информации",0,"Нет информации",2,"  ",2," ",2," ",0,"нет информации",0,"нет информации",2,"нет реквизитов. не указан год",2," ",0,"нет информации",1,"ссылка не активна",2," "]
["Сведения об образовательной организации","Документы. Противодействие коррупции","Горячая линия",2," ",2,null,2," ",2," ",2," ",2," ",2," ",2," ",2," ",2," ",2," ",2," ",2," ",2," ",1,"Информация размещена в другом подразделе",0,"Нет информации",2," ",2," ",2," ",2," ",2," ",2,"  ",2,"  ",2," ",0,"нет информации",2,"  ",2," "]
["Сведения об образовательной организации","Документы. Противодействие коррупции","Локальный акт  о порядке пожертвований от граждан и юридических лиц  ",2," ",2,null,2," ",2," ",2," ",0,"Нет информации",2," ",2," ",2," ",2," ",1,"Размещен приказ об утверждении порядка пожертвований. А утвержденного документа нет.",2," ",1,"Нет информации",1,"Размещен не локальный акт , а текст",2," ",2," ",0,"Страница не найдена",2," ",2," ",2," ",2," ",2,"   ",2,"  ",2," ",0,"нет информации",2,"  ",2," "]
["Сведения об образовательной организации","Документы. Противодействие коррупции","Ссылка на реквизиты расчетного счета, на который поступают пожертвования",2," ",2,null,2,"  ",2," ",2," ",2," ",2," ",2," ",2," ",2," ",2," ",2," ",2," ",2," ",2," ",2," ",0,"Ссылка не открывается",2," ",2," ",2," ",2," ",2,"  ",2,"  ",2," ",0,"нет информации",2,"  ",2," "]
["Сведения об образовательной организации","Документы. Противодействие коррупции","Отчет о расходовании пожертвований и целевых взносов физических и юридических лиц",2," ",2," ",0,"Разщен отчет ФХД",2,"  ",2," ",0,"Нет информации",2," ",2,null,2," ",1,"Плохое качество скана",0,"Нет информации",2," ",1,"Нет информации",0,"Нет информации",2," ",2," ",2," ",2," ",2," ",1," ",2," ",2,"  ",2,"  ",2," ",0,"нет информации",2,"  ",2," "]
["Сведения об образовательной организации","Документы. Оказание платных образовательных  услуг","Документ о порядке оказания платных образовательных услуг",2," ",2,null,2," ",2," ",1,"Размещен приказ об открытии. Требуется положение или порядок..",2," ",2," ",2,null,2," ",2," ",2," ",1,"Размещено постановление администрации, а требуется ваш локальный акт",2," ",2," ",0,"Нет информации",2," ",0,"Нет информации",2," ",2," ",2," ",2," ",2,"   ",2,"  ",2," ",2,"  ",2,"  ",2," "]
["Сведения об образовательной организации","Документы. Оказание платных образовательных  услуг","Образец договора об оказании платных образовательных услуг",2," ",2,null,2," ",2," ",2," ",0,"Нет информации",2," ",2,null,2," ",2," ",2," ",2," ",2," ",2," ",0,"Нет информации",2," ",0,"Нет информации",0,"нет образца ",2," ",2," ",2," ",2,"   ",2,"  ",2," ",2,"  ",0,"нет информации",2," "]
["Сведения об образовательной организации","Документы. Оказание платных образовательных  услуг","Документ об утверждении стоимости обучения по каждой образовательной программе",2," ",2,null,2," ",2," ",2," ",2," ",2," ",2," ",2," ",2," ",2," ",2," ",2," ",2," ",0,"Нет информации",2," ",0,"Нет информации",2," ",2," ",2," ",2," ",2," ",2,"  ",2," ",2,"  ",0,"нет информации",2," "]
["Сведения об образовательной организации","Документы. Результаты проверок","Предписания органов, осуществляющих государственный контроль (надзор) в сфере образования, отчёты об исполнении таких предписаний",2," ",2,null,2," ",2," ",2," ",1,"Оформите критерий. Удалите информацию не относящуюся к данному критерию.",1,"Нет информации",2," ",2," ",2," ",2," ",2," ",2," ",2," ",2," ",2," ",2," ",2," ",2," ",2," ",1,"Возможно размещение только предписаний, отчетов об исполнении предписаний, док. о снятии с контроля, либо информация о том, что проверка не проводилась\n",2,"  ",2,"  ",0,"Нет критерия",0,"Возможно размещение только предписаний, отчетов об исполнении предписаний, док. о снятии с контроля, либо информация о том, что проверка не проводилась",2,"  ",2," "]
["Сведения об образовательной организации","Документы. Обработка персональных данных","Приказ о назначении ответственного  за организацию обработки персональных данных в ОО",2," ",2,null,2," ",2,"  ",2," ",2," ",2," ",2," ",2," ",2," ",2," ",2," ",0,"Страница не найдена",0,"Нет информации",1,"Информация размещена в другом подразделе. Приказ устарел.",2," ",2," ",2," ",2," ",2," ",2," ",2,"   ",2,"  ",2," ",2,"  ",2,"  ",2," "]
["Сведения об образовательной организации","Документы. Обработка персональных данных","Правила (положение) обработки персональных данных, утвержденные руководителем ОО",2,"Размещена Политика",2,null,2," ",2," ",2," ",2," ",2," ",2," ",2," ",2," ",2," ",2," ",0,"Страница не найдена",0,"Нет информации",1,"Только работников, а обучающихся нет",1," Положение о ЗАЩИТЕ, а требуется об ОБРАБОТКЕ",0,"Страница не найдена",2," ",2," ",2," ",2," ",2,"  ",2,"  ",1,"Нет реквизитов утверждения",2,"  ",2,"  ",2," "]
["Сведения об образовательной организации","Документы. Обработка персональных данных","Типовая форма согласия на обработку персональных данных работников и обучающихся (воспитанников), в соответствии со ст. 18.1. Федерального закона от 27.07.2006 № 152-ФЗ «О персональных данных»",2," ",2,null,2," ",2," ",2," ",2," ",2," ",2," ",2," ",2," ",2," ",2," ",0,"Страница не найдена",0,"Нет информации",1,"Только работников, а обучающихся нет",1,"Нет формы согласия работников",2," ",2," ",2," ",2," ",2," ",2,"   ",2,"  ",2," ",2,"  ",2,"  ",1,"Нет согласия для обучающихся"]
["Сведения об образовательной организации","Образование","Реализуемые уровни образования",2," ",2,null,2," ",2," ",2," ",2," ",2," ",2," ",2," ",2," ",2," ",2," ",2," ",2," ",1,"Укажите уровень образования",2," ",2," ",2," ",2," ",2," ",2," ",2,"   ",2,"  ",1,"Уровень образования у вас ДОПОЛНИТЕЛЬНОЕ, а указаны у вас ПОДВИДЫ дополнительного образования взрослых и детей (п. 6 ст.10 закона об образовании",2,"  ",2,"  ",2," "]
["Сведения об образовательной организации","Образование","Форма получения образования и форма обучения",2," ",2,null,2," ",2," ",2," ",0,"Укажите форму получения образования и форму обучения",2," ",2," ",2," ",2," ",2," ",0,"Заполните этот критерий в соответствии с Законом Образовании ст. 17",2," ",2," ",2," ",2," ",2," ",2," ",2," ",2," ",2," ",2,"   ",2,"  ",2," ",2,"  ",2,"  ",2," "]
["Сведения об образовательной организации","Образование","Нормативные сроки обучения",2," ",2,null,2," ",2," ",2," ",2,"  ",2," ",2," ",2," ",2," ",2," ",2," ",2," ",2,"   ",2," ",2," ",2," ",2," ",2," ",2," ",1,"слово \"сроки\" написано раздельно: Нормативные срок и обучения",2,"   ",2,"  ",2," ",2,"  ",2,"  ",2," "]
["Сведения об образовательной организации","Образование","Описание  образовательной программы с приложением её копии.",2," ",2," ",0,"Критерий не оформлен. Нет краткого описания программ ",0,"Критерий не оформлен. Нет краткого описания программ ",0,"Критерий не оформлен. Нет краткого описания программ ",0,"Критерий не оформлен. Нет краткого описания программ ",0,"Критерий не оформлен. Нет инфоормации",0,"Нет критерия",0,"Нет критерия",0,"Нет критерия",0,"Нет критерия",1,"Нет описания образовательных программ ",0,"Нет критерия",0,"Нет информации",0,"Нет информации",0,"Нет критерия",1,"Нет описания образовательной программы и нет реквизитов утверждения",2,"  ",2," ",2,"  ",2," ",2,"  ",2,"  ",1," Нет реквизитов утверждения для обр. программы",2,"  ",2,"  ",1,"Нет описания программ"]
["Сведения об образовательной организации","Образование","Информация о реализуемых дополнительных образовательных программах с указанием учебных предметов, курсов, дисциплин (модулей), практики, предусмотренных соответствующей образовательной программой",2," ",2,null,0,"Критерий не оформлен. Нет информации",1,"Размещен только перечень",2," ",2," ",0,"Критерий не оформлен. Нет инфоормации",2," ",2,"  ",2," ",2," ",1,"Размещены образовательные программы, которые требуется размещать в предыдущем критерии",2," ",1,"Разместить более подробную информацию",0,"Нет информации",0,"Нет критерия",0,"Нет информации",2," ",2," ",2," ",2," ",2,"  ",2,"  ",1,"Информация на странице размещена но не позволяет однозначно ее отнести ни к описанию образовательной программы, ни к информации о реализуемых .. Программах",2,"  ",2,"  ",2," "]
["Сведения об образовательной организации","Образование","Использование при реализации указанных образовательных программ электронного обучения  и дистанционных образовательных технологий",2,"В заголовке указать наименование обр. организации",2,null,0,"Критерий не оформлен. Нет информации",0,"Критерий не оформлен. Нет информации",0,"Нет информации",0,"Нет информации",0,"Критерий не оформлен. Нет инфоормации",1,"Оформить отдельным критерием",2," ",2," ",0,"Нет критерия",2," ",0,"Нет критерия",0,"Нет информации",0,"Нет информации",0,"Нет критерия",0,"Нет информации",2," ",2," ",0,"нет информации",0,"нет информации",0,"нет информации",2,"  ",2,"Откоректируйте формулировку",2,"  ",2,"  ",2," "]
["Сведения об образовательной организации","Образование","Численность обучающихся по реализуемым дополнительным образовательным программам за счет бюджетных ассигнований федерального бюджета, бюджетов субъектов РФ, местных бюджетов и по договорам об образовании за счет средств фических и (или) юридических лиц",2," ",2,null,2," ",2," ",2," ",2," ",2," ",2," ",2," ",2," ",2," ",2," ",2," ",2," ",2," ",2," ",2," ",2," ",2," ",2," ",2," ",2,"   ",2,"  ",2," ",2,"  ",2,"  ",2," "]
["Сведения об образовательной организации","Образование","Язык, на котором осуществляется образование (обучение)",2," ",2,null,2," ",2," ",2," ",2," ",2," ",2," ",2," ",2," ",2," ",2," ",2," ",2," ",2," ",2," ",2," ",2," ",2," ",2," ",2," ",2,"   ",2,"   ",2," ",2,"  ",2,"  ",2," "]
["Сведения об образовательной организации","Образование","Описание дополнительной образовательной программы с приложением ее копии",1,"Нет описания \"обобщенной программы\"",2," ",0,"Нет описания образовательной программы. Программа на прошлый год",1,"Нет описания образовательной программы.",1,"Нет описания образовательной программы.",0,"Нет информации",1,"Нет описания программы ",2," ",2," ",1,"Нет описания образовательной программы",0,"Нет описания программы.  Программа на 2016-2017 год",1,"Нет описания образовательных программ и вместо образовательной программыразмещены рабочие программы дисциплин",2," ",0,"Нет информации",1,"Нет описания программы.",2,"Нет описания программы. Программа на 2016-2017 уч. Год",1,"Нет описания образовательной программы и нет реквизитов утверждения",2," ",2," ",2," ",2," ",2,"  ",2,"  ",1,"Нет реквизитов утверждения",2,"  ",2,"  ",1,"Нет описания программ"]
["Сведения об образовательной организации","Образование","Учебный план с приложением его копии  ",2," ",2,null,2," ",2," ",2," ",0,"Нет информации",2," ",2," ",2," ",2," ",1,"Плохое качество с",2," ",2," ",2," ",2," ",2," ",2," ",2," ",2," ",0,"прошлый год",2," ",0,"прошлый год",2,"  ",2," ",2,"  ",2,"  ",2," "]
["Сведения об образовательной организации","Образование","Календарный учебный график с приложением его копии",2," ",2,null,2," ",2," ",2," ",0,"Нет информации",2," ",2," ",2," ",2," ",2," ",2," ",2," ",0,"на 2016-2017 уч. Год",0,"на 2016-2017",1,"Размещен план работы",0,"на 2016-2017 уч.  Год",2," ",2," ",0,"прошлый год",2," ",0,"прошлый год",2,"  ",2," ",2,"  ",2,"  ",2," "]
["Сведения об образовательной организации","Образование","Методические и иные документы, разработанные образовательной организацией для обеспечения образовательного процесса",2," ",2,null,2," ",2," ",2," ",1,"нет даты размещения информации",2," ",2," ",2," ",2,"Сортировку информации на странице лучше провести по дате размещения , а не по фамилии автора",1,"Нет даты размещения",2," ",2," ",0,"Страница не открывается",1,"Нет даты размещения",1,"Нет даты размещения",2," ",2," ",2," ",2," ",2," ",2,"   ",2,"  ",1,"нет материалов за этот год",2,"  ",2,"  ",2," "]
["Сведения об образовательной организации","Образовательные стандарты","Информация  ФГОС и об образовательных стандартах с приложением копий или гиперссылок на соответствующие документы на сайте Министерства образования и науки Российской Федерации",2," ",2,null,0,"Критерий не оформлен. Нет информации",1,"Критерий не оформлен. Нет информации",0,"Ссылка не открывается",0,"Критерий не оформлен. ",0,"Нет информации",0,"Нет информации",0,"Критерий не оформлен. ",0,"Критерий не оформлен. ",0,"Критерий не оформлен. ",2," ",0,"Нет критерия",0,"Нет информации",0,"Нет критерия",0,"ссылка не открывается",0,"Нет критерия",2,"  ",2," ",2," ",0,"нет информации",0,"нет информации",2,"  ",1,"Ссылка на поисковую страницу с отобранными документами, не относящемися к этому критерию",0,"Критерий не выделен",2,"  ",2," "]
["Сведения об образовательной организации","Руководство. Педагогический состав","Фамилия, Имя, Отчество руководителя и его заместителей",2," ",2,null,2," ",2," ",2," ",2," ",2," ",2," ",2," ",2," ",2," ",2," ",2," ",2," ",2," ",2," ",2," ",2," ",2," ",2," ",2," ",2,"   ",2,"  ",2," ",2," ",2,"  ",2," "]
["Сведения об образовательной организации","Руководство. Педагогический состав","Должность руководителя, его заместителей",2," ",2,null,2," ",2," ",2," ",2," ",2," ",2," ",2," ",2," ",2," ",2," ",2," ",2," ",2," ",2," ",2," ",2," ",2," ",2," ",2," ",2,"   ",2,"  ",2," ",2," ",2,"  ",2," "]
["Сведения об образовательной организации","Руководство. Педагогический состав","Контактные телефоны",2," ",2,null,2," ",2," ",2," ",2," ",2," ",2," ",2," ",2," ",2," ",2," ",2," ",2," ",2," ",2," ",2," ",2," ",2," ",2," ",2," ",2,"   ",2,"  ",2," ",2," ",2,"  ",2," "]
["Сведения об образовательной организации","Руководство. Педагогический состав","Адреса электронной почты",2," ",2,null,2," ",2," ",2," ",2," ",2," ",2," ",2," ",2," ",2," ",2," ",2," ",2,null,2," ",2," ",2," ",2," ",2," ",2," ",2," ",2,"   ",2,"  ",2," ",2," ",2,"  ",2," "]
["Сведения об образовательной организации","Руководство. Педагогический состав","Фамилия, Имя, Отчество педагогических работников",2," ",2,null,1,"Сведения размещены в нескольких документах.Поиск информации сильно затруднен.",2," ",2," ",2," ",2," ",2," ",2," ",2," ",2," ",2," ",0,"Страница не найдена",2,null,2," ",0,"Нет критерия",2," ",2," ",2," ",2," ",2,"  ",2,"  ",2,"  ",1,"Информация размещена в неудобном для восприятия виде",2,"  ",2,"  ",2," "]
["Сведения об образовательной организации","Руководство. Педагогический состав","Занимаемая должность (должности)",2," ",2,null,2," ",2," ",2," ",2," ",2," ",2," ",2," ",2," ",2," ",2," ",0,"Страница не найдена",2," ",2," ",0,"Нет критерия",2," ",2," ",2," ",2," ",2," ",2,"  ",2,"  ",2," ",2,"  ",2,"  ",2," "]
["Сведения об образовательной организации","Руководство. Педагогический состав","Преподаваемые дисциплины",2," ",2,null,2," ",2," ",2," ",0,"Нет информации",2," ",2," ",2," ",0,"Нет критерия",2," ",2," ",0,"Страница не найдена",2," ",2," ",0,"Нет критерия",2," ",2," ",1,"информация не обо всех педагогах",2," ",2," ",0,"нет информации",2,"  ",2," ",0,"нет информации",2,"  ",2," "]
["Сведения об образовательной организации","Руководство. Педагогический состав","Ученая степень (при наличии), ученое звание (при наличии)",2," ",2,null,2," ",2," ",2," ",0,"Нет информации",2," ",2," ",2," ",2," ",2," ",2," ",0,"Страница не найдена",2," ",2," ",0,"Нет критерия",2," ",2," ",2," ",2," ",2," ",2,"  ",2,"  ",2," ",2,"  ",2,"  ",2," "]
["Сведения об образовательной организации","Руководство. Педагогический состав","Наименование направления подготовки и (или) специальности",2," ",2,null,2," ",2," ",2," ",0,"Нет информации",2," ",2," ",2," ",2," ",2," ",2," ",0,"Страница не найдена",2," ",2," ",0,"Нет критерия",2," ",2," ",2," ",2," ",2," ",2,"  ",2,"  ",2," ",2,"  ",2,"  ",2," "]
["Сведения об образовательной организации","Руководство. Педагогический состав","Данные о повышении квалификации и (или) профессиональной переподготовке (при наличии)",2,"Слово \"Курсы\" замените на \"Данные о повышении квалификации…\"",2,null,2," ",2," ",2," ",0,"Нет информации",2," ",2," ",2," ",2," ",2," ",2," ",0,"Страница не найдена",2," ",2," ",0,"Нет критерия",2," ",2," ",2," ",2," ",2,"  ",2,"  ",2,"  ",2," ",2,"  ",2,"  ",2," "]
["Сведения об образовательной организации","Руководство. Педагогический состав","Общий стаж работы",2," ",2,null,1,"Размещена непонятная информация \"Стаж\". К какому критерию относится не понятною",2," ",2," ",0,"Нет информации",2," ",2," ",2," ",2," ",2," ",2," ",0,"Страница не найдена",2," ",2," ",0,"Нет критерия",2," ",2," ",2," ",2," ",2,"  ",2," ",2,"  ",2," ",2,"  ",2,"  ",2," "]
["Сведения об образовательной организации","Руководство. Педагогический состав","Стаж работы по специальности",2," ",2,null,1,"Размещена непонятная информация \"Стаж\". К какому критерию относится не понятною",2," ",2," ",0,"Нет информации",2," ",2," ",2," ",2," ",2," ",2," ",0,"Страница не найдена",2," ",2," ",0,"Нет критерия",2," ",2," ",2,"  ",2," ",2,"  ",2,"    ",2,"  ",2," ",0,"нет информации",2,"  ",2," "]
["Сведения об образовательной организации","Материально-техническая оснащенность образовательного процесса","Сведения о наличии оборудованных учебных кабинетов, объектов для проведения практических занятий, объектов спорта, средств обучения и воспитания, в том числе приспособленных для использования инвалидами и лицами с ограниченными возможностями здоровья",2,"Оформить критерий.",2," ",2," ",1," Более подробную информацию",2," ",2," ",0,"Нет информации",2," ",2," ",2," ",2," ",2," ",2," ",2,"Разместите полную информацию. А не только об инвалидах",2," ",2,"Разместите более подробную инфлрмацию ",2," ",2," ",2," ",2," ",2," ",2,"   ",2,"  ",1,"Необычайно скудная информация",2,"  ",2,"  ",1,"Разместить более подробную информацию"]
["Сведения об образовательной организации","Материально-техническая оснащенность образовательного процесса","условия охраны здоровья обучающихся, в том числе инвалидов и лиц с ограниченными возможностями здоровья",0,"Оформить критерий. Нет информации.",2,null,1,"Критерий не оформлен. Вся информация в одном документе ",0,"Критерий не оформлен.\nНет информации.",0,"Нет криерия",1,"Не полная информация",0,"Нет информации",1,"Оформить отдельным критерием",0,"Критерий не оформлен. ",0,"Критерий не оформлен. ",2," ",0,"Критерий не оформлен. ",2," ",0,"Нет информации",0,"Нет критерия",0,"Нет критерия",0,"Нет критерия",2," ",2," ",0,"нет информации",0,"нет информации",0,"нет информации",2,"  ",0,"Нет критерия",0,"нет информации",2,"  ",1,"Информация должна быть не только по инвалидам, но и по всем обучающимся "]
["Сведения об образовательной организации","Материально-техническая оснащенность образовательного процесса","доступ в здания образовательной организации инвалидов и лиц с ограниченными возможностями здоровья",2,"Оформить критерий ",2,null,0,"Нет критерия",2," ",0,"Нет криерия",1,"Не полная информация",0,"Нет информации",1,"Оформить отдельным критерием",2," ",0,"Критерий не оформлен. ",2," ",0,"Критерий не оформлен. ",2," ",2," ",0,"Нет критерия",0,"Нет критерия",0,"Нет критерия",2," ",2," ",0,"нет информации",2," ",0,"нет информации",2,"  ",2," ",2,"  ",2,"  ",2," "]
["Сведения об образовательной организации","Материально-техническая оснащенность образовательного процесса","доступ к информационным системам и информационно-телекоммуникационным сетям, в том числе приспособленным для использования инвалидами и лицами с ограниченными возможностями здоровья",1,"Оформить критерий. Разместить болееподробную информацию ",2,null,1,"Критерий не оформлен. Вся информация в одном документе ",2," ",0,"Нет криерия",1,"Не полная информация",0,"Нет информации",1,"Оформить отдельным критерием",2," ",0,"Критерий не оформлен. ",2," ",0,"Критерий не оформлен. ",2," ",1,"Разместите более полную информацию",0,"Нет критерия",0,"Нет критерия",0,"Нет критерия",2," ",2," ",0,"нет информации",2,"  ",0,"нет информации",2,"  ",2," ",0,"нет информации",2,"  ",2," "]
["Сведения об образовательной организации","Материально-техническая оснащенность образовательного процесса","Сведения об электронных образовательных ресурсах, к которым обеспечивается доступ обучающихся, в том числе приспособленные для использования инвалидами и лицами с ограниченными возможностями здоровья (ссылки на информационно-образовательные ресурсы:\n официальный сайт Министерства образования   и   науки   Российской   Федерации http://www.mon.gov.ru;\n федеральный портал «Российское образование» http://www.edu.ru;\n информационная  система  «Единое  окно доступа   к   образовательным   ресурсам» http://windou.edu.ru;\n единая  коллекция  цифровых  образовательных ресурсов http://school-collection.edu.ru;\n федеральный центр информационно-образовательных ресурсов http://fcior.edu.ru)\n",2,"Оформить критерий ",2,null,1,"Критерий не оформлен.\nИнформация размещена в другом подразделе.",0,"Критерий не оформлен.\nНет информации.",0,"Нет криерия",0,"Нет информации",1,"Размещен в другом подразделе",0,"Нет критерия",0,"Критерий не оформлен. ",1,"Размещен в другом подразделе",0,"Критерий не оформлен. ",1,"Размещены в другом подразделе",2," ",1,"Разместите более полную информацию",0,"Нет критерия",2," ",0,"Нет критерия",2," ",2," ",0,"нет информации",2," ",0,"нет информации",2,"  ",2," ",0,"нет информации",2,"  ",2," "]
["Сведения об образовательной организации","Материально-техническая оснащенность образовательного процесса","Сведения о специальных технических средствах обучения коллективного и индивидуального пользования для инвалидов и лиц с ограниченными возможностями здоровья",0,"Оформить критерий. Информация отсутствует. ",2,null,0,"Критерий не оформлен.\nНет информации.",2," ",0,"Нет криерия",2," ",0,"Нет информации",1,"Оформить отдельным критерием",2," ",0,"Критерий не оформлен. ",2," ",2," ",2," ",2," ",0,"Нет критерия",0,"Нет критерия",0,"Нет критерия",2," ",2," ",0,"нет информации",2," ",0,"нет информации",2,"  ",1,"Необычайно скудная информация",0,"нет информации",2,"    ",2," "]
["Сведения об образовательной организации","Виды материальной поддержки","виды материальной поддержки обучающихся",2," ",2,null,0,"Критерий не оформлен.\nНет информации.",0,"Критерий не оформлен.\nНет информации.",2," ",0,"Нет информации",0,"Нет информации",0,"Нет критерия",0,"Критерий не оформлен. ",0,"Критерий не оформлен. ",0,"Критерий не оформлен. ",2," ",0,"Страница не найдена",0,"Нет информации",0,"Нет критерия",2," ",0,"Нет критерия",2," ",2," ",0,"нет информации",0,"нет информации",0,"критерий не выделен",2,"  ",0,"Переход на сайт КубГУ",0,"критерий не выделен",2,"  ",2," "]
["Сведения об образовательной организации","Виды материальной поддержки","трудоустройство выпускников",2," ",2,null,0,"Критерий не оформлен.\nНет информации.",0,"Критерий не оформлен.\nНет информации.",0,"Нет криерия",0,"Нет информации",0,"Нет информации",0,"Нет критерия",0,"Критерий не оформлен. ",0,"Критерий не оформлен. ",0,"Критерий не оформлен. ",2," ",0,"Страница не найдена",0,"Нет информации",0,"Нет критерия",0,"Нет критерия",0,"Нет критерия",2," ",2," ",0,"нет информации",0,"нет информации",0,"критерий не выделен",2,"  ",0,"Нет информации",0,"критерий не выделен",2,"   ",2," "]
["Сведения об образовательной организации","Платные образовательные услуги","Гиперссылка на страницу Оказание платных образовательных 1.3. Документы",2," ",2,null,2," ",2," ",2," ",1,"Нет гиперссылки",0,"Нет информации",2," ",2," ",2," ",2," ",2," ",2," ",2," ",1,"на 2016-2017",2," ",2," ",2,"  ",2," ",2," ",2," ",1,"новая страница. Не ссылка",2,"  ",2," ",0,"Новая страница. Не ссылка. Информации нет.",2,"  ",2," "]
["Сведения об образовательной организации","Платные образовательные услуги","расписание занятий по платным дополнительным образовательным услугам, не относящимся к основным видам деятельности с указанием Ф.И.О. педагогического работника ",2," ",2,null,2," ",2," ",0,"Нет криерия",0,"Нет информации",0,"Нет информации",2," ",2," ",2," ",2," ",2," ",2," ",2," ",1,"на 2016-2017",2," ",0,"Нет критерия",2," ",2," ",2," ",0,"нет информации",2,"  ",2,"  ",2," ",0,"нет информации",0,"нет информации",2," "]
["Сведения об образовательной организации","Финансово-хозяйственная деятельность","Муниципальное задание на текущий год и отчет о выполнении за прошедший год",2," ",2,null,2," ",0,"На 2017 год",2," ",2," ",0,"Нет информации",2," ",2," ",2," ",2," ",2," ",2," ",2," ",0,"Недостаточно прав для просмотра этого файла",0,"на 2017 год",0,"Нет информации",2," ",2," ",2," ",2,"  ",2,"  ",2,"  ",0,"На 2017 год",0,"прошлый год",2,"  ",2," "]
["Сведения об образовательной организации","Финансово-хозяйственная деятельность","Поступление и расходование финансовых и материальных средств по итогам финансового года",2," ",2," ",0,"Нет информации.",2," ",0,"за 2016 год",0,"Нет информации",0,"Нет информации",2," ",2," ",2," ",2," ",2," ",2," ",2," ",0,"За 2014 год ",2," ",0,"Ссылка не открывается",2," ",2,"  ",2," ",2,"  ",2,"  ",2,"  ",1,"Размещено боком читать затруднительно",2,"  ",2,"  ",2," "]
["Сведения об образовательной организации","Финансово-хозяйственная деятельность","Отчет о финансово-хозяйственной деятельности",0,"за 2016 год",2,null,2," ",2," ",0,"за 2016 год",0,"за 2015 год",0,"Нет информации",2," ",0,"За 2016 год",2," ",2," ",2," ",2," ",0,"Нет информации",0,"За 2014 год ",0,"за 2016",0,"За 2015 год",2," ",2," ",2," ",2,"  ",0,"2016 г.",2,"  ",2," ",0,"нет информации",2,"  ",2," "]
["Сведения об образовательной организации","Вакантные места для приема (перевода)","Порядок приема",1,"Размещен в другом подразделе",2,null,1,"Критерий не оформлен.\nИнформация размещена в другом подразделе.",2," ",2," ",0,"Ссылка не открывается",0,"Нет информации",2," ",1,"Критерий не оформлен.\nИнформация размещена в другом подразделе.",1,"Критерий не оформлен.\nИнформация размещена в другом подразделе.",1,"Критерий не оформлен.\nИнформация размещена в другом подразделе.",2," ",2," ",2," ",0,"Нет информации",2," ",0,"Нет информации",2," ",2," ",2," ",1,"информация не в том разделе",1,"не в том разделе",2,"  ",2," ",1,"не в том разделе",2,"  ",2," "]
["Порядок поступления в организацию","Вакантные места для приема (перевода)","Перечень необходимых документов для зачисления в образовательную организацию",1,"Размещен в другом подразделе",2,null,1,"Критерий не оформлен.\nИнформация размещена в другом подразделе.",1,"Критерий не оформлен.\nИнформация размещена в другом подразделе.",2," ",2," ",0,"Нет информации",2," ",1,"Критерий не оформлен.\nИнформация размещена в другом подразделе.",1,"Критерий не оформлен.\nИнформация размещена в другом подразделе.",1,"Критерий не оформлен.\nИнформация размещена в другом подразделе.",2," ",2," ",2," ",0,"Нет информации",2," ",1,"Расположен в другом подразделе",2," ",2," ",2," ",1,"информация не в том разделе",2,"не в том разделе",2,"  ",2," ",1,"не в том разделе",2,"  ",2," "]
["Порядок поступления в организацию","Вакантные места для приема (перевода)","Перечень документов для родителей, необходимых для ознакомления",1,"Размещен в другом подразделе",2,null,1,"Критерий не оформлен.\nИнформация размещена в другом подразделе.",1,"Критерий не оформлен.\nИнформация размещена в другом подразделе.",2," ",2," ",0,"Нет информации",2," ",1,"Критерий не оформлен.\nИнформация размещена в другом подразделе.",1,"Критерий не оформлен.\nИнформация размещена в другом подразделе.",1,"Критерий не оформлен.\nИнформация размещена в другом подразделе.",2," ",2," ",2,"  ",0,"Нет информации",2," ",1,"Расположен в другом подразделе",2," ",2," ",2," ",1,"информация не в том разделе",2,"не в том разделе",2,"  ",2," ",1,"не в том разделе",2,"  ",2," "]
["Порядок поступления в организацию","Вакантные места для приема (перевода)","Количество вакантных мест для приема (перевода) по каждой образовательной программе, направлению подготовки",0,"с 1 по 31 мая у вас прием на на второй и последующий годы обучения. Неужели все места заняты.",2,null,0,"Критерий не оформлен.\nНет информации.",1,"Критерий не оформлен.\nИнформация размещена в другом подразделе.",2," ",0,"Нет информации",2," ",2," ",1,"Критерий не оформлен.\nИнформация размещена в другом подразделе.",0,"Критерий не оформлен.\nИнформация размещена в другом подразделе.\nНет информации на следующий год. А прием документов с 1 марта (по положению)",1,"Странно с 1 мая объявлен прием в ОО а вакантных мест уже нет.",2," ",2," ",2,"  ",0,"Нет информации",2," ",2," ",2," ",2," ",2," ",1,"информация не в том разделе",2,"не в том разделе",2,"  ",2," ",0,"нет информации",2," ",2," "]
["Новости","Новости","Материалы о событиях текущей жизни школы, мероприятиях, проводимых в школе мероприятиях",2," ",2,null,2," ",2," ",2," ",2," ",2," ",2," ",2," ",2," ",2," ",2," ",2," ",2," ",2," ",2," ",2," ",2," ",2," ",2," ",2," ",2,"  ",2,"  ",2," ",2,"  ",2,"  ",2," "]
["Организация учебно-воспитательного процесса","Организация учебно-воспитательного процесса","Учебный план",2," ",2,null,2," ",2," ",2," ",0,"2016-2017 ",2," ",2," ",2," ",2," ",2,"  ",2," ",0,"Страница не найдена",2," ",0,"на 2016-2017",2," ",0,"Нет информации",2," ",2," ",0,"на прошлый год",2," ",1,"прошлый год",2,"  ",1,"Размещена таблица без заголовка",1,"не в том разделе",2,"  ",2," "]
["Организация учебно-воспитательного процесса","Организация учебно-воспитательного процесса","Расписание занятий и работы кружков, планы работы, объявления",2," ",2,null,2," ",2," ",1,"Скан очень плохого качества",2," ",2," ",2," ",2," ",2," ",2," ",2," ",0,"Страница не найдена",2," ",0,"на 2016-2017",2," ",2," ",2," ",2," ",2,"  ",2," ",2,"  ",2,"    ",2," ",2,"  ",2,"  ",2," "]
["Достижения","Достижения","Материалы о достижениях учащихся, педагогических работников",2," ",2,null,2," ",1,"Нет данных за текущий учебный год",2," ",2," ",2," ",2," ",2," ",1,"Последняя информация за июнь 2017 - прошел почти год",2," ",2," ",2,"  ",0,"Нет информации",2," ",2," ",2," ",2," ",2," ",2," ",2,"  ",2,"  ",2,"  ",2," ",2,"  ",2,"  ",2]
["Программа развития","Программа развития","Программа, промежуточный и ежегодный анализ результатов реализации Программы",2," ",2,null,2," ",2," ",1,"Нет анализа результатов реализации программы",2,"на 2013-2016 гг",1,"Нет анализа",2," ",2," ",2," ",1,"Нет анализа программы развития",2," ",2,"  ",1,"Разместите более полную информацию",0,"на 2016-2017",0,"Размещена образовательная программа",2," ",2," ",2," ",1,"устарела",2," ",1,"устарела",2,"  ",0,"Нет критерия",2,"  ",1,"нет анализа результатов",2," "]
["Воспитательная работа","Воспитательная работа","Календарный план",2,"Нет реквизитов утверждения",2,null,2," ",2,"В заголовке указать наименование ОО",2," ",0,"Нет информации",2," ",2," ",2," ",2," ",2," ",2," ",2,"  ",2," ",0,"на лето 2017",1,"Размещены различные планы, но только не план воспитательной работы",2," ",2," ",2," ",0,"2017 год",2," ",2,"  ",2,"  ",1,"Размещен календарный план Городских, краевых, Всероссийских и международных соревнований на 2017 год.    \n",2,"  ",2,"  ",2," "]
["Воспитательная работа","Воспитательная работа","План мероприятий на текущий учебный год, новости, статьи и сценарии о проведенных культурно-досуговых и спортивно-массовых мероприятиях",2," ",2,null,0,"Критерий не оформлен.\nНет информации.",2," ",1,"Много документов за прошлые года ",2," ",2," ",2," ",2," ",2," ",2," ",2,"Разместите планы конкретных мероприятий ",2,"  ",2," ",1,"За прошлые годы",2," ",2," ",2," ",2," ",1,"2017 год",2," ",1,"прошлый год",2,"  ",2," ",2,"  ",1,"нет плана",2," "]
["Наш профсоюз","Наш профсоюз","Новости профсоюзного комитета, состав профсоюзного комитета, документы первичной профсоюзной организации, направления работы, это важно знать каждому, фотоотчет о мероприятиях, социальное партнерство, работа с ветеранами",2," ",2,null,2," ",2," ",2," ",2," ",2," ",2," ",2," ",2," ",2," ",2," ",2,"  ",2," ",2," ",2,"  ",2," ",2," ",2," ",2,"  ",2," ",2,"  ",2,"  ",2," ",2,"  ",2,"  ",2," "]
["Карта сайта","Карта сайта","Содержание информации во всех разделах сайта и ссылки на все документы",2," ",2,null,2," ",2," ",2," ",2," ",2," ",2," ",2," ",2," ",2," ",2," ",2,"  ",0,"Нет информации",2," ",2," ",2," ",2," ",2," ",2," ",2," ",2,"  ",2,"  ",2," ",2,"  ",2,"  ",2," "]
["Статистика посещения","Статистика посещения","Подсчет посещаемости web-сайта",2," ",2,null,2," ",2," ",2,"  ",2," ",2," ",2," ",2," ",2," ",2," ",2," ",2,"  ",2," ",2," ",2," ",2," ",2," ",2," ",2," ",2," ",2,"  ",2,"  ",2," ",2,"  ",2,"  ",2," "]
[null,null,"Сумма баллов",{"$f":"SUM(D4:D98)","v":177},null,{"$f":"SUM(F4:F98)","v":190},null,{"$f":"SUM(H4:H98)","v":145},null,161,null,158,null,109,null,140,null,173,null,167,null,159,null,159,null,177,null,144,null,142,null,117,null,119,null,128,null,{"$f":"SUM(AL4:AL98)","v":184},null,{"$f":"SUM(AN4:AN98)","v":189},null,160,null,164,null,150,null,188,null,159,null,{"$f":"SUM(AZ4:AZ98)","v":143},null,179,null,185]
[null,null,"Процент наполняемости",{"$f":"SUM(D102,D104)","v":0.95789473684210535},null,{"$f":"SUM(F102,F104)","v":1},null,{"$f":"SUM(H102,H104)","v":0.83157894736842108},null,0.90526315789473688,null,0.87368421052631584,null,0.64210526315789473,null,0.76842105263157889,null,0.94736842105263164,null,0.90526315789473677,null,0.88421052631578945,null,0.89473684210526316,null,0.95789473684210535,null,0.78947368421052633,null,0.81052631578947376,null,0.6947368421052631,null,0.67368421052631577,null,0.71578947368421053,null,{"$f":"SUM(AL102,AL104)","v":0.96842105263157896},null,{"$f":"SUM(AN102,AN104)","v":1},null,0.86315789473684212,null,0.91578947368421049,null,0.82105263157894737,null,0.98947368421052628,null,0.9263157894736842,null,{"$f":"SUM(AZ102,AZ104)","v":0.77894736842105261},null,0.95789473684210524,null,1]
[null,null,"Обновленная  информация",{"$f":"COUNTIF(D4:D98,2)","v":86},null,{"$f":"COUNTIF(F4:F98,2)","v":95},null,66,null,75,null,75,null,48,null,67,null,83,null,81,null,75,null,74,null,86,null,69,null,65,null,51,null,55,null,60,null,{"$f":"COUNTIF(AL4:AL98,2)","v":92},null,{"$f":"COUNTIF(AN4:AN98,2)","v":94},null,78,null,77,null,72,null,94,null,71,null,{"$f":"COUNTIF(AZ4:AZ98,2)","v":69},null,88,null,90]
[null,null,"Обновленная  информация, %",{"$f":"D101*100%/D107","v":0.90526315789473688},null,{"$f":"F101*100%/F107","v":1},null,{"$f":"H101*100%/H107","v":0.69473684210526321},null,0.78947368421052633,null,0.78947368421052633,null,0.50526315789473686,null,0.70526315789473681,null,0.87368421052631584,null,0.85263157894736841,null,0.78947368421052633,null,0.77894736842105261,null,0.90526315789473688,null,0.72631578947368425,null,0.68421052631578949,null,0.5368421052631579,null,0.57894736842105265,null,0.63157894736842102,null,{"$f":"AL101*100%/AL107","v":0.96842105263157896},null,{"$f":"AN101*100%/AN107","v":0.98947368421052628},null,0.82105263157894737,null,0.81052631578947365,null,0.75789473684210529,null,0.98947368421052628,null,0.74736842105263157,null,{"$f":"AZ101*100%/AZ107","v":0.72631578947368425},null,0.9263157894736842,null,0.94736842105263153]
[null,null,"Неполная  информация",{"$f":"COUNTIF(D4:D98,1)","v":5},null,0,null,13,null,11,null,8,null,13,null,6,null,7,null,5,null,9,null,11,null,5,null,6,null,12,null,15,null,9,null,8,null,{"$f":"COUNTIF(AL4:AL98,1)","v":0},null,{"$f":"COUNTIF(AN4:AN98,1)","v":1},null,4,null,10,null,6,null,0,null,17,null,{"$f":"COUNTIF(AZ4:AZ98,1)","v":5},null,3,null,5]
[null,null,"Неполная  информация,%",{"$f":"D103*100%/D107","v":5.2631578947368418E-2},null,{"$f":"F103*100%/F107","v":0},null,0.1368421052631579,null,0.11578947368421053,null,8.4210526315789472E-2,null,0.1368421052631579,null,6.3157894736842107E-2,null,7.3684210526315783E-2,null,5.2631578947368418E-2,null,9.4736842105263161E-2,null,0.11578947368421053,null,5.2631578947368418E-2,null,6.3157894736842107E-2,null,0.12631578947368421,null,0.15789473684210525,null,9.4736842105263161E-2,null,8.4210526315789472E-2,null,{"$f":"AL103*100%/AL107","v":0},null,{"$f":"AN103*100%/AN107","v":1.0526315789473684E-2},null,4.2105263157894736E-2,null,0.10526315789473684,null,6.3157894736842107E-2,null,0,null,0.17894736842105263,null,{"$f":"AZ103*100%/AZ107","v":5.2631578947368418E-2},null,3.1578947368421054E-2,null,5.2631578947368418E-2]
[null,null,"Информация отсутствует",{"$f":"COUNTIF(D4:D98,0)","v":4},null,{"$f":"COUNTIF(F4:F98,0)","v":0},null,16,null,9,null,12,null,34,null,22,null,5,null,9,null,11,null,10,null,4,null,20,null,18,null,29,null,31,null,27,null,{"$f":"COUNTIF(AL4:AL98,0)","v":3},null,{"$f":"COUNTIF(AN4:AN98,0)","v":0},null,13,null,8,null,17,null,1,null,7,null,{"$f":"COUNTIF(AZ4:AZ98,0)","v":21},null,4,null,0]
[null,null,"Информация отсутствует, %",{"$f":"D105*100%/D107","v":4.2105263157894736E-2},null,{"$f":"F105*100%/F107","v":0},null,{"$f":"H105*100%/H107","v":0.16842105263157894},null,9.4736842105263161E-2,null,null,null,0.35789473684210527,null,0.23157894736842105,null,5.2631578947368418E-2,null,9.4736842105263161E-2,null,0.11578947368421053,null,0.10526315789473684,null,4.2105263157894736E-2,null,0.21052631578947367,null,0.18947368421052632,null,0.30526315789473685,null,0.32631578947368423,null,0.28421052631578947,null,{"$f":"AL105*100%/AL107","v":3.1578947368421054E-2},null,{"$f":"AN105*100%/AN107","v":0},null,0.1368421052631579,null,8.4210526315789472E-2,null,0.17894736842105263,null,1.0526315789473684E-2,null,7.3684210526315783E-2,null,{"$f":"AZ105*100%/AZ107","v":0.22105263157894736},null,4.2105263157894736E-2,null,0]
[null,null,"Количество критериев",{"$f":"D101+D103+D105","v":95},null,{"$f":"F101+F103+F105","v":95},null,{"$f":"H101+H103+H105","v":95},null,{"$f":"J101+J103+J105","v":95},null,{"$f":"L101+L103+L105","v":95},null,95,null,95,null,95,null,95,null,95,null,95,null,95,null,95,null,95,null,95,null,95,null,95,null,{"$f":"AL101+AL103+AL105","v":95},null,{"$f":"AN101+AN103+AN105","v":95},null,95,null,95,null,95,null,95,null,95,null,{"$f":"AZ101+AZ103+AZ105","v":95},null,95,null,95]